Cogmind - Beta 15 --- EXPLORER MODE // 2025.06.20 @ 17:50:59 // Winter2019/RPGLIKE Player: User15V Result: Self-destructed Performance ------------- Evolutions (1) 500 Regions Visited (5) 1000 Robots Destroyed (29) 145 Value Destroyed (589) 589 Prototype IDs (24) 480 Alien Tech Used (0) 0 Bonus (500) 500 TOTAL SCORE: 3214 Bonus ------- Pacifist 200 Aligned with FarCom 300 Cogmind --------- Core Integrity 600/600 Matter 300/300 Energy 280/280 System Corruption 0% Temperature Cool (0) Movement Walking (190) Ox1 Location -9/Exiles Parts ------- > --- POWER (1) -------- Heavy Ion Engine > --- PROPULSION (2) --- Carbon-fiber Leg Carbon-fiber Leg > --- UTILITY (4) ------ Heat Sink Improved Heat Sink Targeting Computer Reactive Plating > --- WEAPON (2) ------- Heavy Assault Cannon > --- INVENTORY (3) ---- Datajack Plasma Cutter Plasma Flamer Peak State ------------ > --- POWER ------------ Heavy Ion Engine > --- PROPULSION ------- Carbon-fiber Leg Carbon-fiber Leg > --- UTILITY ---------- Heat Sink Improved Heat Sink Targeting Computer Reactive Plating > --- WEAPON ----------- Heavy Assault Cannon > --- INVENTORY -------- Heavy Assault Cannon Plasma Flamer [Rating: 24] Favorites ----------- Power Heavy Ion Engine Engine Heavy Ion Engine Propulsion Carbon-fiber Leg Leg Carbon-fiber Leg Utility Targeting Computer Device Improved Heat Sink Processor Targeting Computer Protection Reactive Plating Weapon Heavy Assault Cannon Energy Gun Beam Rifle Ballistic Gun Heavy Assault Rifle Ballistic Cannon Heavy Assault Cannon Build | -11 -10 -10 -9 -9 -9 ------- Run | Yrd Mat Min Mat Min Exi Slots Evolved 5 | . . 5 . . . Power . | . . . . . . Propulsion 1 | . . 1 . . . Utility 3 | . . 3 . . . Weapon 1 | . . 1 . . . Parts Attached 12 | . . 7 5 . . Power 2 | . . 1 1 . . Engine 2 | . . 1 1 . . Core . | . . . . . . Reactor . | . . . . . . Propulsion 2 | . . 2 . . . Treads . | . . . . . . Leg 2 | . . 2 . . . Wheel . | . . . . . . Hover . | . . . . . . Flight . | . . . . . . Utility 4 | . . 2 2 . . Device 2 | . . 1 1 . . Storage . | . . . . . . Processor 1 | . . 1 . . . Hackware . | . . . . . . Protection 1 | . . . 1 . . Artifact . | . . . . . . Weapon 4 | . . 2 2 . . Energy Gun 1 | . . 1 . . . Energy Cannon . | . . . . . . Ballistic Gun 2 | . . 1 1 . . Ballistic Cannon 1 | . . . 1 . . Launcher . | . . . . . . Special Weapon . | . . . . . . Impact Weapon . | . . . . . . Slashing Weapon . | . . . . . . Piercing Weapon . | . . . . . . Special Melee Weapon . | . . . . . . Unidentified Prototypes 1 | . . . 1 . . Parts Lost . | . . . . . . Power . | . . . . . . Propulsion . | . . . . . . Utility . | . . . . . . Weapon . | . . . . . . Highest Loss Streak . | . . . . . . To Critical Strikes . | . . . . . . Average Backups 1 | . . . 1 2 3 Power . | . . . . . . Propulsion . | . . . . . . Utility . | . . . . . . Weapon . | . . . . 1 1 Tool/Special . | . . . . . . Unused Backups 4 | . . 1 . 1 2 Power . | . . . . . . Propulsion 1 | . . 1 . . . Utility . | . . . . . . Weapon 2 | . . . . 1 1 Tool/Special 1 | . . . . . 1 Average Slot Usage (%) 77 | . . 57 82 88 88 Engine 10 | . . 7 11 11 11 Leg 20 | . . 18 22 22 22 Device 16 | . . 7 16 22 22 Processor 10 | . . 7 11 11 11 Protection 6 | . . . 5 11 11 Energy Gun 3 | . . 8 4 . . Ballistic Gun 3 | . . 8 5 . . Ballistic Cannon 6 | . . . 6 11 11 Peak Build Rating 24 | . . 16 23 24 23 Average Rating 18 | . . 12 20 23 23 On Entrance 10 | . . . 16 23 23 Naked Turns 90 | . 68 22 . . . Heaviest Build 32 | . . 14 32 32 32 Greatest Support 30 | 3 3 30 30 30 30 Greatest Overweight (x) 1 | . . . 1 1 1 Average Overweight (x) . | . . . . 1 1 Largest Inventory Capacity 3 | . . 3 3 3 3 Average Capacity 2 | . . 2 3 3 3 Most Carried 3 | . . 2 3 3 3 Average Carried 2 | . . . 2 2 3 Final Capacity 3 | . . 3 3 3 3 Final Carried 3 | . . . 3 3 3 Class Distribution -------------------- 67% | Hacker-Mutant 32% | Scavenger-Mutant Dominant Class ---------------- Hacker-Mutant | -10/Materials Scavenger-Mutant | -10/Mines Hacker-Mutant | -9/Materials Hacker-Mutant | -9/Mines Hacker-Mutant | -9/Exiles Resources | -11 -10 -10 -9 -9 -9 ----------- Run | Yrd Mat Min Mat Min Exi Matter Collected 625 | 200 . 80 307 38 . Remotely . | . . . . . . Salvage Created 655 | . . . 622 33 . Parts 43 | . . . 41 2 . Haulers Intercepted . | . . . . . . Recyclers Shooed . | . . . . . . Parts Field Recycled . | . . . . . . Retrieved Matter . | . . . . . . Parts Self-Destructed . | . . . . . . Prevented . | . . . . . . Kills | -11 -10 -10 -9 -9 -9 ------- Run | Yrd Mat Min Mat Min Exi Combat Hostiles Destroyed 19 | . . . 18 1 . Guns 10 | . . . 10 . . Cannons 8 | . . . 7 1 . Classes Destroyed 8 | . . . 7 1 . Worker 4 | . . . 2 2 . Tunneler 2 | . . . 2 . . Recycler 1 | . . . 1 . . Watcher 4 | . . . 4 . . Swarmer 7 | . . . 7 . . Grunt 7 | . . . 7 . . Sentry 4 | . . . 4 . . Assembled 1 | . . . . 1 . Best Kill Streak 6 | . . . 6 2 . Combat Bots Only 5 | . . . 5 1 . Max Kills in Single Turn 2 | . . . 2 1 . Gunslinging 1 | . . . 1 . . Exploded . | . . . . . . Melee . | . . . . . . Uniques/NPCs Destroyed . | . . . . . . Combat | -11 -10 -10 -9 -9 -9 -------- Run | Yrd Mat Min Mat Min Exi Hostile Shots Fired 83 | . 2 . 81 . . Missed 28 | . 1 . 27 . . Hits 55 | . 1 . 54 . . Projectile 55 | . 1 . 54 . . Critical Strikes 2 | . . . 2 . . Damage Taken 416 | . 7 . 409 . . Core 304 | . 7 . 297 . . Absorbed by Shields . | . . . . . . Redirected to Core 245 | . . . 245 . . Ignored by Resistances 307 | . 4 . 303 . . Core Remaining (%) 100 | 100 . 100 . . . Volleys Fired 59 | . . . 54 5 . Largest 2 | . . . 2 1 . Hottest 79 | . . . 79 50 . Shots Fired 91 | . . . 86 5 . Gun 64 | . . . 64 . . Cannon 27 | . . . 22 5 . Launcher . | . . . . . . Special . | . . . . . . Kinetic 59 | . . . 54 5 . Thermal 32 | . . . 32 . . Explosive . | . . . . . . Electromagnetic . | . . . . . . Robot Hit Streak 23 | . . . 23 6 . Robot Miss Streak 1 | . . . 1 . . Penetration Max 1 | . . . 1 . . Secondary Targets 3 | . . . 3 . . Max Gunslinging Chain 1 | . . . 1 . . Shots Hit Robots 78 | . . . 73 5 . Core Hits 33 | . . . 28 5 . Critical Kills . | . . . . . . Critical Parts Destroyed . | . . . . . . Critical Strikes 10 | . . . 10 . . Burn 4 | . . . 4 . . Blast 6 | . . . 6 . . Melee Attacks . | . . . . . . Impact . | . . . . . . Slashing . | . . . . . . Piercing . | . . . . . . Sneak Attacks . | . . . . . . Combat Hostiles . | . . . . . . Follow-up Attacks . | . . . . . . Damage Inflicted 2275 | . . . 1994 281 . Guns 819 | . . . 819 . . Cannons 1444 | . . . 1175 269 . Explosions . | . . . . . . Melee . | . . . . . . Ramming 12 | . . . . 12 . Kinetic 1841 | . . . 1572 269 . Thermal 422 | . . . 422 . . Explosive . | . . . . . . Electromagnetic . | . . . . . . Impact . | . . . . . . Slashing . | . . . . . . Piercing . | . . . . . . Highest Corruption . | . . . . . . Average Corruption . | . . . . . . Corruption Purged . | . . . . . . Corruption Blocked . | . . . . . . Overload Shots . | . . . . . . Overflow Damage 155 | . . . 117 38 . Projectiles 155 | . . . 117 38 . Explosions . | . . . . . . Melee . | . . . . . . Knockbacks 2 | . . . 1 1 . Impact . | . . . . . . Kinetic 2 | . . . 1 1 . Secondary . | . . . . . . Self-Inflicted Damage . | . . . . . . Shots . | . . . . . . Rammed . | . . . . . . Targets Rammed 5 | . . . . 5 . Kicked 5 | . . . . 5 . Crushed . | . . . . . . Highest Temperature 20 | . . . 20 . . Average Temperature 5 | . . . 5 . . Received Heat Transfer 234 | . 6 . 228 . . Siege Activations . | . . . . . . Martial Activations . | . . . . . . Shielding Activations . | . . . . . . Robots Disrupted . | . . . . . . Combat Hostiles . | . . . . . . Robots Corrupted . | . . . . . . Combat Hostiles . | . . . . . . Parts Fried . | . . . . . . Impact Corruptions . | . . . . . . Robots Melted 1 | . . . 1 . . Combat Hostiles 1 | . . . 1 . . Parts Melted 8 | . . . 8 . . Heat Transferred 1369 | . . . 1369 . . Parts Sabotaged . | . . . . . . Parts Stolen . | . . . . . . Parts Stripped . | . . . . . . Power Chain Reactions . | . . . . . . Alert | -11 -10 -10 -9 -9 -9 ------- Run | Yrd Mat Min Mat Min Exi Maximum Alert Level . | . . . . . . Low Security (%) 100 | 100 100 100 100 100 . Level 1 . | . . . . . . Level 2 . | . . . . . . Level 3 . | . . . . . . Level 4 . | . . . . . . Level 5 . | . . . . . . High Security . | . . . . . . Max Security . | . . . . . . Peak Influence 152 | . 45 12 152 5 . Initial 12 | . . 12 . 1 . Average 27 | . 10 1 41 . . Influence Increases 592 | . 60 . 522 10 . Destroy 0b10 Robot/C 360 | . . . 360 . . Destroy 0b10 Robot/NC 55 | . . . 45 10 . Destroy Leader 98 | . . . 98 . . Destroy Structure 4 | . . . 4 . . Lose Combat Pursuer 75 | . 60 . 15 . . Influence Decreases 592 | . 15 45 516 16 . Entered New Map 38 | . . 33 . 5 . Time Decay 554 | . 15 12 516 11 . Squads Dispatched 1 | . . . 1 . . Investigation . | . . . . . . Extermination . | . . . . . . Reinforcement 1 | . . . 1 . . Assault . | . . . . . . Garrison . | . . . . . . Intercept . | . . . . . . Searches Triggered . | . . . . . . Construction Impeded . | . . . . . . Haulers Reinforced . | . . . . . . Active Scanning Responses . | . . . . . . Cargo Convoy Interrupts . | . . . . . . Stealth | -11 -10 -10 -9 -9 -9 --------- Run | Yrd Mat Min Mat Min Exi Distress Signals 2 | . . . 1 1 . Communications Jammed . | . . . . . . Distress Signals . | . . . . . . Times Spotted 39 | . 7 1 29 2 . Peak Tracking Total 5 | . 5 1 5 2 . Tactical Retreats 4 | . 2 . 1 1 . Traps | -11 -10 -10 -9 -9 -9 ------- Run | Yrd Mat Min Mat Min Exi Traps Triggered 3 | . 2 . 1 . . Indirectly . | . . . . . . Trap Hack Attempts . | . . . . . . Triggered . | . . . . . . Disarmed . | . . . . . . Reprogrammed . | . . . . . . Reused . | . . . . . . Traps Extracted . | . . . . . . Installed . | . . . . . . Triggered . | . . . . . . Machines | -11 -10 -10 -9 -9 -9 ---------- Run | Yrd Mat Min Mat Min Exi Machines Disabled . | . . . . . . Max in Single Turn . | . . . . . . Machines Repaired . | . . . . . . Machines Dismantled . | . . . . . . Machines Sabotaged . | . . . . . . Overloaded Fab Kills . | . . . . . . Hacking | -11 -10 -10 -9 -9 -9 --------- Run | Yrd Mat Min Mat Min Exi Machines Accessed 1 | . . . . . 1 Terminals . | . . . . . . Fabricators . | . . . . . . Repair Stations . | . . . . . . Recycling Units . | . . . . . . Scanalyzers . | . . . . . . Garrison Access . | . . . . . . Total Hacks 1 | . . . . . 1 Successful 1 | . . . . . 1 Failed . | . . . . . . Catastrophic . | . . . . . . Database Lockouts . | . . . . . . Manual 1 | . . . . . 1 Terminals . | . . . . . . Fabricators . | . . . . . . Repair Stations . | . . . . . . Recycling Units . | . . . . . . Scanalyzers . | . . . . . . Garrison Access . | . . . . . . Terminal Hacks 1 | . . . . . 1 Proto ID Catalog 1 | . . . . . 1 Fabricator Hacks . | . . . . . . Repair Station Hacks . | . . . . . . Recycling Unit Hacks . | . . . . . . Scanalyzer . | . . . . . . Garrison Access Hacks . | . . . . . . Unauthorized Hacks . | . . . . . . Terminals . | . . . . . . Fabricators . | . . . . . . Repair Stations . | . . . . . . Recycling Units . | . . . . . . Scanalyzers . | . . . . . . Garrison Access . | . . . . . . Data Cores Recovered . | . . . . . . Used . | . . . . . . Hacking Detections . | . . . . . . Full Trace Events . | . . . . . . Feedback Events . | . . . . . . Feedback Blocked . | . . . . . . Robot Schematics Acquired . | . . . . . . Robots Built . | . . . . . . Authchips . | . . . . . . Time . | . . . . . . Total Robot Build Rating . | . . . . . . Part Schematics Acquired . | . . . . . . Parts Built . | . . . . . . Authchips . | . . . . . . Time . | . . . . . . Total Part Build Rating . | . . . . . . Parts Repaired . | . . . . . . Time . | . . . . . . Parts Recycled . | . . . . . . Recycled Matter . | . . . . . . Retrieved Matter . | . . . . . . Retrieved Components . | . . . . . . Parts Scanalyzed . | . . . . . . Part Schematics Acquired . | . . . . . . Parts Damaged . | . . . . . . Bothacking | -11 -10 -10 -9 -9 -9 ------------ Run | Yrd Mat Min Mat Min Exi Used RIF Installer . | . . . . . . Robots Hacked . | . . . . . . Non-combat . | . . . . . . Combat . | . . . . . . Robot Hacks Applied . | . . . . . . Relay Couplers Released . | . . . . . . Fabnet Peak Effective % . | . . . . . . Robots Rewired . | . . . . . . Allies Hacked . | . . . . . . Hacks Repelled . | . . . . . . Allies | -11 -10 -10 -9 -9 -9 -------- Run | Yrd Mat Min Mat Min Exi Total Allies . | . . . . . . Largest Group . | . . . . . . Highest-Rated Group . | . . . . . . Highest-Rated Ally . | . . . . . . Total Orders . | . . . . . . Ally Attacks . | . . . . . . Total Damage . | . . . . . . Kills . | . . . . . . Allies Corrupted . | . . . . . . Allies Melted . | . . . . . . Intel | -11 -10 -10 -9 -9 -9 ------- Run | Yrd Mat Min Mat Min Exi Active Infowar (turns) . | . . . . . . Robot Analysis Total . | . . . . . . Derelict Logs Recovered 1 | . . 1 . . . Drone Launches . | . . . . . . Drone Recoveries . | . . . . . . Exploration | -11 -10 -10 -9 -9 -9 ------------- Run | Yrd Mat Min Mat Min Exi Turns Passed 1550 | 20 68 161 847 233 221 Spaces Moved 974 | 39 135 133 441 110 116 Core 205 | 39 135 31 . . . Treads . | . . . . . . Legs 769 | . . 102 441 110 116 Wheels . | . . . . . . Hover . | . . . . . . Flight . | . . . . . . Fastest Speed 50 | 50 50 50 120 190 190 Average Speed 135 | 50 50 103 151 190 190 Slowest Speed 190 | 50 50 120 190 190 190 Overloaded Moves . | . . . . . . Propulsion Burnouts . | . . . . . . Robots Hopped . | . . . . . . Potential Cave-ins . | . . . . . . Cave-ins Triggered . | . . . . . . Exploration Rate (%) 34 | 3 42 39 49 35 40 Regions Visited 5 Branch Regions 3 Pre-discovered Areas . | . . . . . . Known Exits Taken 5 | 1 1 1 1 1 . Unknown Exits Taken . | . . . . . . Scrap Searched 1 | . . . . 1 . Spaces Dug 2 | . . . 2 . . Terrain Destroyed 4 | . . . 4 . . Melee . | . . . . . . Projectile 4 | . . . 4 . . AOE . | . . . . . . Terrain Rammed . | . . . . . . Walls Destroyed . | . . . . . . Machines Disabled . | . . . . . . Actions | -11 -10 -10 -9 -9 -9 --------- Run | Yrd Mat Min Mat Min Exi Total 1093 | 38 134 156 525 124 116 Wait 6 | . . 6 . . . Move 969 | 38 134 132 440 109 116 Hop . | . . . . . . Pick Up 15 | . . 7 5 3 . Fast Attach 3 | . . 1 2 . . Attach 8 | . . 6 2 . . Detach . | . . . . . . Swap 2 | . . 1 1 . . Drop 8 | . . 2 4 2 . Fire 59 | . . . 54 5 . Melee . | . . . . . . Ram . | . . . . . . Kick 5 | . . . . 5 . Crush . | . . . . . . Escape Stasis . | . . . . . . Rewire . | . . . . . . Trap . | . . . . . . Miscellaneous 18 | . . 1 17 . . Route ------- -11/Scrapyard -10/Materials -10/Mines -9/Materials (discovered 3 exits: *Mat x2 / *Min) -9/Mines (discovered 2 exits: *Mat / *Exi) -9/Exiles History --------- Turn | Location | Event 3 | -11/Scrapyard | Identified exit to Materials 3 | -11/Scrapyard | Discovered exit to Materials (range 15) 21 | -11/Scrapyard | Entered Materials 81 | -10/Materials | Identified exit to Mines 81 | -10/Materials | Discovered exit to Mines (range 16) 89 | -10/Materials | Entered Mines 103 | -10/Mines | Joined a pair of Derelicts in attacking an 0b10 outpost 115 | -10/Mines | Upgraded with Propulsion slot (x1) 115 | -10/Mines | Upgraded with Utility slot (x3) 115 | -10/Mines | Upgraded with Weapon slot (x1) 193 | -10/Mines | Learned Materials trap positions 238 | -10/Mines | Identified exit to Materials 238 | -10/Mines | Discovered exit to Materials (range 11) 250 | -10/Mines | Entered Materials 251 | -9/Materials | Loaded intel: 11 trap records 252 | -9/Materials | Reached level 2 252 | -9/Materials | Reached level 3 321 | -9/Materials | Reached level 4 401 | -9/Materials | Build established: Scavenger-Mutant 454 | -9/Materials | Identified exit to Materials 454 | -9/Materials | Discovered exit to Materials (range 15) 832 | -9/Materials | Discovered exit to Materials (range 8) 892 | -9/Materials | Build established: Hacker-Mutant 984 | -9/Materials | Reached level 5 1061 | -9/Materials | Identified exit to Mines 1061 | -9/Materials | Discovered exit to Mines (range 13) 1097 | -9/Materials | Entered Mines 1124 | -9/Mines | A weapon hastily lodged in a ceiling crevice suddenly fell to the ground 1153 | -9/Mines | Met a Derelict bent on vengeance 1156 | -9/Mines | Discovered exit to Materials (range 8) 1203 | -9/Mines | Assembled infested the area 1322 | -9/Mines | Deemed a non-threat by the Exiles lab entrance 1322 | -9/Mines | Identified exit to Exiles 1322 | -9/Mines | Discovered exit to Exiles (range 5) 1330 | -9/Mines | Entered Exiles 1376 | -9/Exiles | Met 8R-AWN 1408 | -9/Exiles | Met EX-HEX 1469 | -9/Exiles | Met EX-BIN 1490 | -9/Exiles | Aligned with FarCom system 1492 | -9/Exiles | Given EX-Vault access code 1541 | -9/Exiles | Opened EX-Vault 1551 | -9/Exiles | Self-destructed Last Messages --------------- Modified TNC 0b10 Alert Chip Cloak of Protection Skeleton Box Trap Reconfigurator Supersonic Drone Bay Army-in-a-Box PSU Rigger Chronowheel AWS/Thermal Latent Energy Streamer Gui. Plasma Cannon Firepult YOLO Cannon AWS/Gauss XL Autogun Array AWS/Autocannon Field Lobotomy Kit Longsword +1 Deploy-a-Sentry Map ----- +----------------------------------------------------+ | | | | | | | | | | | | | | | | | | | | | | | | | | | | | | | | | | | | | | | | | | | | | | | ?????????????????????????#???????????????????????? | | ?????????????????????####X####???????????????????? | | ?????????????????????# @ #???????????????????? | | ?????????????????????# ] !#???????????????????? | | ?????????????????????# ] #???????????????????? | | ?????????????????????## ##???????????????????? | | ?????????????????????#X #????????????????????? | | ?????????????????????## #????????????????????? | | ??????????????????????# #????????????????????? | | ??????????????????????# #???###??????????????? | | ??????????????????????# #??"""""?????????????? | | ??????????????????????# ## """?????????????? | | ??????????????????????# X""?????????????? | | ??????????????????????# ## """?????????????? | | ????????????????####??# #??"""""?????????????? | | ???????????????""""""?# #???###??????????????? | | ???????????????"""" ## #????????????????????? | | ??????????????#""X" #????????????????????? | | ??????????????#" #????????????????????? | | ??????????????#" ## #????????????????????? | | ??????????????#""""""?# #?#########??????????? | | ???????????????#"###??# #?#"""""""#??????????? | | ??????????????????????# #?#"""""""#??????????? | | ??????????????????????# #?#"""""""#??????????? | | ?????????????????????## ###"" """"#??????????? | | ?????????????????????#" """"#??????????? | | ?????????????????????#" """#??????????? | +----------------------------------------------------+ Best States ------------- Heat Dissipation 49 Energy Generation 14 Energy Capacity 280 Matter Stores 300 Matter Capacity 300 Sight Range 16 Terrain Scan Density 10 Armor Coverage 150 Resistance: KI 55 Resistance: TH 35 Resistance: EX 35 Resistance: EM 35 Resistance: I 35 Resistance: S 35 Resistance: P 35 Evasion (%) 55 Targeting Accuracy 5 Offensive Hacking 20 Item Schematics ----------------- None Robot Schematics ------------------ None Fabricated ------------ Nothing Repaired ---------- Nothing Alien Tech Used ----------------- None Achievements -------------- None Challenges ------------ None RPGLIKE | -11 -10 -10 -9 -9 -9 --------- Run | Yrd Mat Min Mat Min Exi Levels Raised 4 | . . . 4 . . XP Earned 13136 | 6000 . 600 5686 500 350 XP Spent 4900 | . . 4900 . . . Upgrades 8 | . . 8 . . . Propulsion Slot 1 | . . 1 . . . Utility Slot 3 | . . 3 . . . Weapon Slot 1 | . . 1 . . . Inventory Capacity 3 | . . 3 . . . Protomatter Created 195 | . . . 195 . . Integrity Restored 355 | . . 7 348 . . Core 304 | . . 7 297 . . Parts 51 | . . . 51 . . Protomatter Decayed 208 | . . 102 79 27 . Game ------ Seed ChipExpertMatterbank Manual? 0 Play Time 00:08:32 Cumulative 549.4 hours Start 2025.06.20 @ 17:42:35 End 2025.06.20 @ 17:50:59 Sessions 1 Manual Loads 0 Difficulty Explorer Special Mode Winter2019/RPGLIKE Game No. 244 Rogue 104 Adventurer 111 Explorer 29 Win Type - Total 39 Types 20/5/1/6/1/1/1/1/1/2 Lore% 91 Gallery% 94 Achievement% 94 Wizard Run 0 Options --------- Layout 2 ASCII 0 Keyboard 0 Movement Mouse Keybinds 0 Fullscreen 2 Font 24/Smallcaps Map View 50x44 Zoom Use 0% Tactical HUD 1 Map Filters NONE Filters NONE Steam 1 RUN: acf1f9d7-7fe0-4b6a-8c1f-76d20727b832